fUSD/lending_fUSD_20240714
["ID","MTS","AMOUNT","RATE_DAILY","PERIOD"]
[331996275,1720929064010,-1000.0,0.00013699,2]
[331996276,1720929064021,-1000.0,0.00013699,2]
[331996277,1720929064032,-1000.0,0.00013699,2]
[331996278,1720929064044,-1000.0,0.00013699,2]
[331996279,1720929064055,-1000.0,0.00013699,2]
[331996280,1720929064067,-1104.17,0.00013699,2]
[331996281,1720929064079,-200.0,0.00013699,2]
[331996282,1720929064089,-1500.0,0.00013699,5]
[331996283,1720929064101,-6733.28,0.00013699,2]
[331996284,1720929064113,-250.0,0.00013699,2]
[331996285,1720929064126,-161209.0,0.00013699,2]
[331996286,1720929064138,-7376.0,0.00013699,2]
[331996287,1720929064149,-10065.44,0.00013699,2]
[331996288,1720929064161,-2097.68,0.00013699,2]
[331996289,1720929064173,-2749.99,0.00013699,2]
[331996290,1720929064184,-300.0,0.00013699,2]
[331996291,1720929064196,-300.0,0.00013699,2]
[331996292,1720929064207,-300.0,0.00013699,2]
[331996293,1720929064221,-300.0,0.00013699,2]
[331996294,1720929064232,-300.0,0.00013699,2]
[331996295,1720929064244,-301.6923161,0.00013699,2]
[331996296,1720929064255,-10000.0,0.00013699,2]
[331996297,1720929064267,-151.0,0.00013699,2]
[331996298,1720929064278,-10000.0,0.00013699,2]
[331996299,1720929064290,-151.0,0.00013699,2]
[331996300,1720929064301,-10000.0,0.00013699,2]
[331996301,1720929064312,-10000.0,0.00013699,2]
[331996302,1720929064323,-10000.0,0.00013699,2]
[331996303,1720929064334,-10000.0,0.00013699,2]
[331996304,1720929064345,-683.864752,0.00013699,2]
[331996305,1720929064356,-683.864752,0.00013699,2]
[331996306,1720929064367,-185.915744,0.00013699,2]
[331996307,1720929064378,-185.915744,0.00013699,2]
[331996308,1720929064389,-151.0,0.00013699,2]
[331996309,1720929064400,-16000.0,0.000137,2]
[331996310,1720929064411,-16000.0,0.000137,2]
[331996311,1720929064423,-160.0,0.000137,2]
[331996312,1720929064433,-2050.85148546,0.000137,2]
[331996313,1720929064444,-200.0,0.000137,5]
[331996314,1720929064456,-392.93921158,0.000137,2]
[331996315,1720929064468,-7628.94449209,0.000137,2]
[331996316,1720929064480,-151.0,0.000137,2]
[331996317,1720929064491,-151.0,0.000137,2]
[331996318,1720929064503,-642.057057,0.00013715,2]
[331996319,1720929064513,-12007.219599,0.00013715,2]
[331996320,1720929064525,-222.333863,0.00013715,2]
[331996321,1720929064536,-412.6184,0.00013715,2]
[331996322,1720929064547,-5678.343345,0.00013715,2]
[331996323,1720929064558,-203.613466,0.00013715,2]
[331996324,1720929064569,-284.909346,0.00013715,2]
[331996325,1720929064580,-3987.249233,0.00013715,2]
[331996326,1720929064591,-255.171724,0.00013715,2]
[331996327,1720929064606,-488.522963,0.00013715,2]
[331996328,1720929064617,-267.741001,0.00013715,2]
[331996329,1720929064628,-181.684392,0.00013715,2]
[331996330,1720929064640,-532.907782,0.00013715,2]
[331996331,1720929064651,-535.482001,0.00013715,2]
[331996332,1720929064662,-185.80484,0.00013715,2]
[331996333,1720929064673,-202.639152,0.00013715,2]
[331996334,1720929064684,-1559.77932,0.00013715,2]
[331996335,1720929064695,-304.109246,0.00013715,2]
[331996336,1720929064707,-1107.629452,0.00013715,2]
[331996337,1720929064719,-1031.928922,0.00013715,2]
[331996338,1720929064731,-156.855901,0.00013715,2]
[331996339,1720929064743,-541.87221,0.00013715,2]
[331996340,1720929064754,-1062.920744,0.00013715,2]
[331996341,1720929064765,-409.39068,0.00013715,2]
[331996342,1720929064776,-846.327752,0.00013715,2]
[331996343,1720929064787,-282.109251,0.00013715,2]
[331996344,1720929064799,-195.32244,0.00013715,2]
[331996345,1720929064810,-678.33577,0.00013715,2]
[331996346,1720929064821,-2583.681189,0.00013715,2]
[331996347,1720929064832,-1129.457611,0.00013715,2]
[331996348,1720929064843,-1398.795923,0.00013715,2]
[331996349,1720929064854,-617.031723,0.00013715,2]
[331996350,1720929064870,-299.389953,0.00013715,2]
[331996351,1720929064880,-466.265307,0.00013715,2]
[331996352,1720929064892,-376.48587,0.00013715,2]
[331996353,1720929064903,-617.031722,0.00013715,2]
[331996354,1720929064914,-1546.18,0.00013725,2]
[331996355,1720929064926,-521.95,0.00013725,2]
[331996356,1720929064938,-500.0,0.00013725,2]
[331996357,1720929064952,-500.0,0.00013725,2]
[331996358,1720929064964,-495.26659519,0.00013725,2]
[331996359,1720929064976,-1938.22,0.00013725,2]
[331996360,1720929064990,-1291.781132,0.00013725,2]
[331996361,1720929065000,-1178.430091,0.00013725,2]
[331996362,1720929065011,-2828.998152,0.00013725,2]
[331996363,1720929065023,-165.047359,0.00013725,2]
[331996364,1720929065034,-826.036019,0.00013725,2]
[331996365,1720929065045,-589.635328,0.00013725,2]
[331996366,1720929065056,-707.249538,0.00013725,2]
[331996367,1720929065068,-206.509005,0.00013725,2]
[331996368,1720929065079,-1102.28,0.00013751,2]
[331996369,1720929065091,-500.0,0.00013751,2]
[331996370,1720929065102,-606.03,0.00013751,2]
[331996371,1720929065113,-7476.84,0.00013751,2]
[331996372,1720929065125,-4980.81,0.00013751,2]
[331996373,1720929065135,-150.0,0.00013751,2]
[331996374,1720929065147,-1767.91,0.00013751,2]
[331996375,1720929065158,-1309.31,0.00013751,2]
[331996376,1720929065169,-500.0,0.00013752,2]
[331996377,1720929065180,-500.0,0.00013752,2]
[331996378,1720929065191,-500.0,0.00013752,2]
[331996379,1720929065203,-1546.18,0.00013752,2]
[331996380,1720929065216,-1546.18,0.00013752,2]
[331996381,1720929065228,-1546.18,0.00013752,2]
[331996382,1720929065239,-1546.18,0.00013752,2]
[331996383,1720929065251,-521.95,0.00013752,2]
[331996384,1720929065264,-521.95,0.00013752,2]
[331996385,1720929065278,-521.95,0.00013752,2]
[331996386,1720929065291,-521.95,0.00013752,2]
[331996387,1720929065304,-151.0,0.00013752,2]
[331996388,1720929065318,-500.0,0.00013752,2]
[331996389,1720929065331,-500.0,0.00013752,2]
[331996390,1720929065343,-500.0,0.00013752,2]
[331996391,1720929065356,-400.0,0.00013752,2]
[331996392,1720929065369,-500.0,0.00013752,2]
[331996393,1720929065382,-500.0,0.00013752,2]
[331996394,1720929065395,-500.0,0.00013752,2]
[331996395,1720929065407,-500.0,0.00013752,2]
[331996396,1720929065419,-500.0,0.00013752,2]
[331996397,1720929065432,-500.0,0.00013752,2]
[331996398,1720929065445,-500.0,0.00013752,2]
[331996399,1720929065457,-500.0,0.00013752,2]
[331996400,1720929065471,-1102.28,0.00013752,2]
[331996401,1720929065484,-1102.28,0.00013752,2]
[331996402,1720929065496,-1102.28,0.00013752,2]
[331996403,1720929065509,-1102.28,0.00013752,2]
[331996404,1720929065521,-151.0,0.00013752,2]
[331996405,1720929065533,-151.0,0.00013752,2]
[331996406,1720929065546,-151.335151,0.00013752,2]
[331996407,1720929065558,-1697.221291,0.00013752,2]
[331996408,1720929065570,-1697.221291,0.00013752,2]
[331996409,1720929065582,-339.75,0.00013752,2]
[331996410,1720929065595,-339.75,0.00013752,2]
[331996411,1720929065607,-151.0,0.00013752,2]
[331996412,1720929065620,-151.0,0.00013752,2]
[331996413,1720929065632,-151.0,0.00013752,2]
[331996414,1720929065644,-234.634639,0.00013752,2]
[331996415,1720929065656,-151.0,0.00013752,2]
[331996416,1720929065668,-234.634639,0.00013752,2]
[331996417,1720929065681,-179.186664,0.00013752,2]
[331996418,1720929065693,-162.841394,0.00013752,2]
[331996419,1720929065705,-1356.39,0.00013752,2]
[331996420,1720929065717,-1356.39,0.00013752,2]
[331996421,1720929065730,-1356.39,0.00013752,2]
[331996422,1720929065743,-1356.39,0.00013752,2]
[331996423,1720929065755,-1356.39,0.00013752,2]
[331996424,1720929065768,-1356.39,0.00013752,2]
[331996425,1720929065781,-500.0,0.00013752,2]
[331996426,1720929065793,-500.0,0.00013752,2]
[331996427,1720929065806,-500.0,0.00013752,2]
[331996428,1720929065818,-500.0,0.00013752,2]
[331996429,1720929065831,-500.0,0.00013752,2]
[331996430,1720929065843,-185.328613,0.00013752,2]
[331996431,1720929065856,-185.328613,0.00013752,2]
[331996432,1720929065870,-151.0,0.00013752,2]
[331996433,1720929065882,-151.0,0.00013752,2]
[331996434,1720929065894,-151.0,0.00013752,2]
[331996435,1720929065907,-278.692934,0.00013752,2]
[331996436,1720929065920,-220.082618,0.00013752,2]
[331996437,1720929065933,-151.0,0.00013752,2]
[331996438,1720929065947,-220.082618,0.00013752,2]
[331996439,1720929065962,-151.0,0.00013752,2]
[331996440,1720929066171,-209.852985,0.00013752,2]
[331996441,1720929066190,-163.76,0.00013752,2]
[331996442,1720929066200,-282.376632,0.00013752,2]
[331996443,1720929066210,-163.76,0.00013752,2]
[331996444,1720929066219,-151.0,0.00013752,2]
[331996445,1720929066228,-247.736588,0.00013752,2]
[331996446,1720929066239,-247.736588,0.00013752,2]
[331996447,1720929066249,-151.0,0.00013752,2]
[331996448,1720929066259,-151.0,0.00013752,2]
[331996449,1720929066268,-151.0,0.00013752,2]
[331996450,1720929066277,-151.0,0.00013752,2]
[331996451,1720929066287,-151.0,0.00013752,2]
[331996452,1720929066296,-151.0,0.00013752,2]
[331996453,1720929066306,-290.604268,0.00013752,2]
[331996454,1720929066316,-151.0,0.00013752,2]
[331996455,1720929066325,-606.03,0.00013752,2]
[331996456,1720929066335,-606.03,0.00013752,2]
[331996457,1720929066344,-606.03,0.00013752,2]
[331996458,1720929066354,-606.03,0.00013752,2]
[331996459,1720929066363,-606.03,0.00013752,2]
[331996460,1720929066372,-606.03,0.00013752,2]
[331996461,1720929066381,-151.0,0.00013752,2]
[331996462,1720929066390,-956.774465,0.00013752,2]
[331996463,1720929066399,-956.774465,0.00013752,2]
[331996464,1720929066409,-534.473365,0.00013752,2]
[331996465,1720929066418,-534.473365,0.00013752,2]
[331996466,1720929066427,-151.0,0.00013752,2]
[331996467,1720929066436,-151.0,0.00013752,2]
[331996468,1720929066446,-500.0,0.00013752,2]
[331996469,1720929066455,-500.0,0.00013752,2]
[331996470,1720929066466,-500.0,0.00013752,2]
[331996471,1720929066475,-151.0,0.00013752,2]
[331996472,1720929066485,-210.084862,0.00013752,2]
[331996473,1720929066494,-151.0,0.00013752,2]
[331996474,1720929066504,-152.738335,0.00013752,2]
[331996475,1720929066513,-152.738335,0.00013752,2]
[331996476,1720929066522,-7476.84,0.00013752,2]
[331996477,1720929066531,-7476.84,0.00013752,2]
[331996478,1720929066541,-7476.84,0.00013752,2]
[331996479,1720929066550,-7476.84,0.00013752,2]
[331996480,1720929066559,-7476.84,0.00013752,2]
[331996481,1720929066569,-7476.84,0.00013752,2]
[331996482,1720929066578,-151.0,0.00013752,2]
[331996483,1720929066587,-175.562276,0.00013752,2]
[331996484,1720929066596,-151.0,0.00013752,2]
[331996485,1720929066605,-175.562276,0.00013752,2]
[331996486,1720929066615,-458.449784,0.00013752,2]
[331996487,1720929066624,-458.449784,0.00013752,2]
[331996488,1720929066634,-161.234922,0.00013752,2]
[331996489,1720929066643,-161.234922,0.00013752,2]
[331996490,1720929066653,-1136.416145,0.00013752,2]
[331996491,1720929066662,-1136.416145,0.00013752,2]
[331996492,1720929066672,-4980.81,0.00013752,2]
[331996493,1720929066681,-4980.81,0.00013752,2]
[331996494,1720929066691,-4980.81,0.00013752,2]
[331996495,1720929066700,-4980.81,0.00013752,2]
[331996496,1720929066710,-1938.22,0.00013752,2]
[331996497,1720929066720,-1938.22,0.00013752,2]
[331996498,1720929066729,-1938.22,0.00013752,2]
[331996499,1720929066739,-1938.22,0.00013752,2]
[331996500,1720929066748,-1767.91,0.00013752,2]
[331996501,1720929066757,-1767.91,0.00013752,2]
[331996502,1720929066766,-1767.91,0.00013752,2]
[331996503,1720929066776,-1767.91,0.00013752,2]
[331996504,1720929066786,-1767.91,0.00013752,2]
[331996505,1720929066795,-1767.91,0.00013752,2]
[331996506,1720929066804,-1309.31,0.00013752,2]
[331996507,1720929066813,-1309.31,0.00013752,2]
[331996508,1720929066822,-1309.31,0.00013752,2]
[331996509,1720929066832,-1309.31,0.00013752,2]
[331996510,1720929066841,-1309.31,0.00013752,2]
[331996511,1720929066850,-1309.31,0.00013752,2]
[331996512,1720929066859,-500.0,0.00013753,2]
[331996513,1720929066871,-500.0,0.00013753,2]
[331996514,1720929066881,-500.0,0.00013753,2]
[331996515,1720929066890,-500.0,0.00013753,2]
[331996516,1720929066900,-500.0,0.00013753,2]
[331996517,1720929066911,-500.0,0.00013753,2]
[331996518,1720929066923,-500.0,0.00013753,2]
[331996519,1720929066933,-500.0,0.00013753,2]
[331996520,1720929066944,-579.35795674,0.00013753,2]
[331996521,1720929066955,-500.0,0.00013753,2]
[331996522,1720929066965,-500.0,0.00013753,2]
[331996523,1720929066974,-500.0,0.00013753,2]
[331996524,1720929066983,-500.0,0.00013753,2]
[331996525,1720929066993,-500.0,0.00013753,2]
[331996526,1720929067002,-500.0,0.00013753,2]
[331996527,1720929067012,-500.0,0.00013753,2]
[331996528,1720929067021,-500.0,0.00013753,2]
[331996529,1720929067031,-500.0,0.00013753,2]
[331996530,1720929067042,-500.0,0.00013753,2]
[331996531,1720929067052,-500.0,0.00013753,2]
[331996532,1720929067063,-500.0,0.00013753,2]
[331996533,1720929067073,-500.0,0.00013753,2]
[331996534,1720929067084,-500.0,0.00013753,2]
[331996535,1720929067094,-500.0,0.00013753,2]
[331996536,1720929067103,-500.0,0.00013753,2]
[331996537,1720929067113,-500.0,0.00013753,2]
[331996538,1720929067123,-500.0,0.00013753,2]
[331996539,1720929067133,-500.0,0.00013753,2]
[331996540,1720929067142,-300.37699038,0.00013753,2]
[331996541,1720929067153,-500.0,0.00013753,2]
[331996542,1720929067163,-500.0,0.00013753,2]
[331996543,1720929067174,-500.0,0.00013753,2]
[331996544,1720929067186,-500.0,0.00013753,2]
[331996545,1720929067195,-500.0,0.00013753,2]
[331996546,1720929067204,-500.0,0.00013753,2]
[331996547,1720929067213,-500.0,0.00013753,2]
[331996548,1720929067223,-500.0,0.00013753,2]
[331996549,1720929067232,-500.0,0.00013753,2]
[331996550,1720929067243,-500.0,0.00013753,2]
[331996551,1720929067252,-500.0,0.00013753,2]
[331996552,1720929067263,-500.0,0.00013753,2]
[331996553,1720929067273,-500.0,0.00013753,2]
[331996554,1720929067282,-500.0,0.00013753,2]
[331996555,1720929067292,-500.0,0.00013753,2]
[331996556,1720929067301,-500.0,0.00013753,2]
[331996557,1720929067311,-500.0,0.00013753,2]
[331996558,1720929067321,-500.0,0.00013753,2]
[331996559,1720929067330,-500.0,0.00013753,2]
[331996560,1720929067340,-500.70739144,0.00013753,2]
[331996561,1720929067349,-501.39755522,0.00013753,2]
[331996562,1720929067359,-500.0,0.00013753,2]
[331996563,1720929067369,-501.22801133,0.00013753,2]
[331996564,1720929067378,-500.0,0.00013753,2]
[331996565,1720929067388,-501.05415038,0.00013753,2]
[331996566,1720929067398,-503.02839535,0.00013753,2]
[331996567,1720929067407,-500.0,0.00013753,2]
[331996568,1720929067417,-500.0,0.00013753,2]
[331996569,1720929067426,-500.0,0.00013753,2]
[331996570,1720929067435,-501.12438383,0.00013753,2]
[331996571,1720929067444,-500.0,0.00013753,2]
[331996572,1720929067454,-504.29137642,0.00013753,2]
[331996573,1720929067464,-505.21097801,0.00013753,2]
[331996574,1720929067473,-500.0,0.00013753,2]
[331996575,1720929067483,-500.0,0.00013753,2]
[331996576,1720929067495,-649.10669462,0.00013753,2]
[331996577,1720929067507,-500.0,0.00013753,2]
[331996578,1720929067517,-500.0,0.00013753,2]
[331996579,1720929067530,-500.0,0.00013753,2]
[331996580,1720929067541,-500.77388813,0.00013753,2]
[331996581,1720929067550,-503.81438109,0.00013753,2]
[331996582,1720929067559,-507.60715308,0.00013753,2]
[331996583,1720929067569,-500.0,0.00013753,2]
[331996584,1720929067578,-502.63177788,0.00013753,2]
[331996585,1720929067587,-500.95252889,0.00013753,2]
[331996586,1720929067598,-500.0,0.00013753,2]
[331996587,1720929067608,-337.77715838,0.00013753,2]
[331996588,1720929067618,-503.66989034,0.00013753,2]
[331996589,1720929067628,-500.0,0.00013753,2]
[331996590,1720929067638,-500.0,0.00013753,2]
[331996591,1720929067650,-151.0,0.00013753,2]
[331996592,1720929067660,-166.398314,0.00013753,2]
[331996593,1720929067670,-500.0,0.00013753,2]
[331996594,1720929067682,-501.61619125,0.00013753,2]
[331996595,1720929067692,-500.0,0.00013753,2]
[331996596,1720929067702,-500.0,0.00013753,2]
[331996597,1720929067713,-500.0,0.00013753,2]
[331996598,1720929067722,-158.12682016,0.00013753,2]
[331996599,1720929067731,-500.0,0.00013753,2]
[331996600,1720929067743,-500.0,0.00013753,2]
[331996601,1720929067753,-500.0,0.00013753,2]
[331996602,1720929067763,-500.0,0.00013753,2]
[331996603,1720929067775,-500.0,0.00013753,2]
[331996604,1720929067785,-500.0,0.00013753,2]
[331996605,1720929067794,-500.0,0.00013753,2]
[331996606,1720929067804,-501.37066602,0.00013753,2]
[331996607,1720929067814,-500.0,0.00013753,2]
[331996608,1720929067825,-500.0,0.00013753,2]
[331996609,1720929067835,-259.08109062,0.00013753,2]
[331996610,1720929067845,-500.0,0.00013753,2]
[331996611,1720929067855,-500.0,0.00013753,2]
[331996612,1720929067866,-500.0,0.00013753,2]
[331996613,1720929067878,-500.0,0.00013753,2]
[331996614,1720929067888,-500.0,0.00013753,2]
[331996615,1720929067898,-536.98367067,0.00013753,2]
[331996616,1720929067907,-500.0,0.00013753,2]
[331996617,1720929067917,-500.0,0.00013753,2]
[331996618,1720929067926,-503.64716041,0.00013753,2]
[331996619,1720929067936,-500.0,0.00013753,2]
[331996620,1720929067946,-500.0,0.00013753,2]
[331996621,1720929067956,-500.68304232,0.00013753,2]
[331996622,1720929067966,-500.0,0.00013753,2]
[331996623,1720929067975,-421.04687338,0.00013753,2]
[331996624,1720929067985,-500.0,0.00013753,2]
[331996625,1720929067995,-500.0,0.00013753,2]
[331996626,1720929068007,-501.00540953,0.00013753,2]
[331996627,1720929068016,-500.0,0.00013753,2]
[331996628,1720929068025,-500.0,0.00013753,2]
[331996629,1720929068035,-500.0,0.00013753,2]
[331996630,1720929068044,-509.86413045,0.00013753,2]
[331996631,1720929068054,-500.0,0.00013753,2]
[331996632,1720929068064,-502.30227903,0.00013753,2]
[331996633,1720929068074,-500.0,0.00013753,2]
[331996634,1720929068083,-500.0,0.00013753,2]
[331996635,1720929068093,-372.9229849,0.00013753,2]
[331996636,1720929068102,-500.0,0.00013753,2]
[331996637,1720929068112,-502.57418051,0.00013753,2]
[331996638,1720929068122,-500.0,0.00013753,2]
[331996639,1720929068131,-500.0,0.00013753,2]
[331996640,1720929068141,-500.0,0.00013753,2]
[331996641,1720929068150,-504.7049923,0.00013753,2]
[331996642,1720929068160,-500.0,0.00013753,2]
[331996643,1720929068169,-500.0,0.00013753,2]
[331996644,1720929068178,-500.0,0.00013753,2]
[331996645,1720929068188,-500.0,0.00013753,2]
[331996646,1720929068197,-500.69218488,0.00013753,2]
[331996647,1720929068207,-500.0,0.00013753,2]
[331996648,1720929068217,-500.0,0.00013753,2]
[331996649,1720929068228,-500.0,0.00013753,2]
[331996650,1720929068238,-500.91132704,0.00013753,2]
[331996651,1720929068248,-213.556972,0.00013753,2]
[331996652,1720929068258,-504.07201468,0.00013753,2]
[331996653,1720929068267,-500.0,0.00013753,2]
[331996654,1720929068277,-500.0,0.00013753,2]
[331996655,1720929068286,-500.0,0.00013753,2]
[331996656,1720929068296,-500.0,0.00013753,2]
[331996657,1720929068306,-500.0,0.00013753,2]
[331996658,1720929068315,-501.45450432,0.00013753,2]
[331996659,1720929068325,-502.42933027,0.00013753,2]
[331996660,1720929068334,-500.0,0.00013753,2]
[331996661,1720929068343,-500.60066254,0.00013753,2]
[331996662,1720929068353,-500.0,0.00013753,2]
[331996663,1720929068362,-500.0,0.00013753,2]
[331996664,1720929068372,-500.0,0.00013753,2]
[331996665,1720929068381,-500.0,0.00013753,2]
[331996666,1720929068391,-500.0,0.00013753,2]
[331996667,1720929068400,-205.86401793,0.00013753,2]
[331996668,1720929068410,-500.0,0.00013753,2]
[331996669,1720929068419,-504.35935375,0.00013753,2]
[331996670,1720929068428,-500.0,0.00013753,2]
[331996671,1720929068438,-500.0,0.00013753,2]
[331996672,1720929068447,-500.0,0.00013753,2]
[331996673,1720929068456,-502.07027796,0.00013753,2]
[331996674,1720929068466,-500.0,0.00013753,2]
[331996675,1720929068476,-505.58,0.00013753,2]
[331996676,1720929068485,-503.41544059,0.00013753,2]
[331996677,1720929068495,-500.0,0.00013753,2]
[331996678,1720929068504,-500.0,0.00013753,2]
[331996679,1720929068513,-504.41892639,0.00013753,2]
[331996680,1720929068522,-500.0,0.00013753,2]
[331996681,1720929068532,-197.06732846,0.00013753,2]
[331996682,1720929068541,-502.08401204,0.00013753,2]
[331996683,1720929068550,-500.0,0.00013753,2]
[331996684,1720929068559,-500.0,0.00013753,2]
[331996685,1720929068570,-503.63769869,0.00013753,2]
[331996686,1720929068579,-500.0,0.00013753,2]
[331996687,1720929068589,-500.0,0.00013753,2]
[331996688,1720929068598,-500.0,0.00013753,2]
[331996689,1720929068607,-500.55819495,0.00013753,2]
[331996690,1720929068616,-500.0,0.00013753,2]
[331996691,1720929068626,-618.76927004,0.00013753,2]
[331996692,1720929068635,-500.0,0.00013753,2]
[331996693,1720929068645,-644.8134654,0.00013753,2]
[331996694,1720929068654,-543.04,0.00013753,2]
[331996695,1720929068663,-500.0,0.00013753,2]
[331996696,1720929068673,-500.0,0.00013753,2]
[331996697,1720929068682,-610.16402154,0.00013753,2]
[331996698,1720929068691,-500.0,0.00013753,2]
[331996699,1720929068700,-504.9430297,0.00013753,2]
[331996700,1720929068710,-500.0,0.00013753,2]
[331996701,1720929068720,-500.0,0.00013753,2]
[331996702,1720929068729,-500.0,0.00013753,2]
[331996703,1720929068738,-500.0,0.00013753,2]
[331996704,1720929068747,-500.0,0.00013753,2]
[331996705,1720929068756,-500.0,0.00013753,2]
[331996706,1720929068766,-500.0,0.00013753,2]
[331996707,1720929068775,-500.0,0.00013753,2]
[331996708,1720929068784,-502.47334027,0.00013753,2]
[331996709,1720929068793,-151.0,0.00013753,2]
[331996710,1720929068803,-501.82363038,0.00013753,2]
[331996711,1720929068812,-151.0,0.00013753,2]
[331996712,1720929068821,-151.0,0.00013753,2]
[331996713,1720929068830,-500.0,0.00013753,2]
[331996714,1720929068840,-500.0,0.00013753,2]
[331996715,1720929068849,-500.0,0.00013753,2]
[331996716,1720929068859,-500.0,0.00013753,2]
[331996717,1720929068872,-500.0,0.00013753,2]
[331996718,1720929068883,-500.0,0.00013753,2]
[331996719,1720929068893,-500.0,0.00013753,2]
[331996720,1720929068902,-500.0,0.00013753,2]
[331996721,1720929068913,-531.77900753,0.00013753,2]
[331996722,1720929068922,-500.0,0.00013753,2]
[331996723,1720929068931,-737.24,0.00013753,2]
[331996724,1720929068941,-500.0,0.00013753,2]
[331996725,1720929068952,-500.0,0.00013753,2]
[331996726,1720929068962,-500.0,0.00013753,2]
[331996727,1720929068971,-500.0,0.00013753,2]
[331996728,1720929068982,-500.0,0.00013753,2]
[331996729,1720929068991,-501.01326893,0.00013753,2]
[331996730,1720929069000,-500.0,0.00013753,2]
[331996731,1720929069010,-500.0,0.00013753,2]
[331996732,1720929069020,-500.0,0.00013753,2]
[331996733,1720929069029,-500.0,0.00013753,2]
[331996734,1720929069039,-501.16794321,0.00013753,2]
[331996735,1720929069048,-500.0,0.00013753,2]
[331996736,1720929069058,-166.90465942,0.00013753,2]
[331996737,1720929069067,-500.0,0.00013753,2]
[331996738,1720929069077,-151.0,0.00013753,2]
[331996739,1720929069086,-151.0,0.00013753,2]
[331996740,1720929069096,-191.320755,0.00013753,2]
[331996741,1720929069105,-500.0,0.00013753,2]
[331996742,1720929069114,-500.0,0.00013753,2]
[331996743,1720929069290,-500.0,0.00013753,2]
[331996744,1720929069306,-500.0,0.00013753,2]
[331996745,1720929069316,-500.0,0.00013753,2]
[331996746,1720929069326,-500.0,0.00013753,2]
[331996747,1720929069335,-500.0,0.00013753,2]
[331996748,1720929069345,-500.0,0.00013753,2]
[331996749,1720929069356,-500.0,0.00013753,2]
[331996750,1720929069365,-500.0,0.00013753,2]
[331996751,1720929069375,-500.0,0.00013753,2]
[331996752,1720929069384,-503.27884543,0.00013753,2]
[331996753,1720929069394,-500.0,0.00013753,2]
[331996754,1720929069404,-500.0,0.00013753,2]
[331996755,1720929069414,-500.0,0.00013753,2]
[331996756,1720929069423,-500.0,0.00013753,2]
[331996757,1720929069432,-151.0,0.00013753,2]
[331996758,1720929069442,-500.0,0.00013753,2]
[331996759,1720929069452,-500.0,0.00013753,2]
[331996760,1720929069462,-151.0,0.00013753,2]
[331996761,1720929069472,-500.0,0.00013753,2]
[331996762,1720929069482,-151.0,0.00013753,2]
[331996763,1720929069491,-500.0,0.00013753,2]
[331996764,1720929069501,-151.0,0.00013753,2]
[331996765,1720929069512,-500.0,0.00013753,2]
[331996766,1720929069521,-151.0,0.00013753,2]
[331996767,1720929069530,-151.0,0.00013753,2]
[331996768,1720929069540,-500.0,0.00013753,2]
[331996769,1720929069549,-500.0,0.00013753,2]
[331996770,1720929069559,-500.0,0.00013753,2]
[331996771,1720929069569,-500.0,0.00013753,2]
[331996772,1720929069578,-500.0,0.00013753,2]
[331996773,1720929069587,-151.0,0.00013753,2]
[331996774,1720929069597,-151.436585,0.00013753,2]